{"text_format":"1","workbook":"xlsx","n_sheets":5,"sheets":["Übersicht","Rechnung","Kunden","Rechnungen","Positionen"],"not_rendered":{"charts":0,"images":1,"macros":1,"external_links":0,"defined_names":4,"comments":0,"pivot_tables":0},"unopened":[],"bounds":{"document_bytes":16777216,"sheet_cells":100000,"rows_first":2000,"rows_last":500,"rows_between":2000,"halvings":0,"cell_chars":16384,"cell_head_chars":4096},"cells_cut":0,"cells_raw":0,"read":"whole","date_system":"1900"}

{"sheet":"Übersicht","index":0,"n_rows":35,"n_cols":19,"rows_kept":35,"cut":false,"hidden":false,"merged":[]}
[]
[null,"Einmalige Einrichtung des Rechnungssystems:",null,null,null,null,null,null,null,null,null,null,"Allgemeine Hinweise"]
[]
[null,null,null,null,null,null,null,null,null,null,null,null,1,"Alle Funktionen des Rechnungssystems lassen sich durch die Benutzung der Buttons verwenden"]
[null,null,null,null,null,null,null,null,null,null,null,null,2,"Eine Rechnung besteht aus drei Elementen:"]
[null,null,null,null,null,null,null,null,null,null,null,null,null,"a","Mindestens eine Rechnungsposition (Registerblatt: Positionen) - PFLICHT"]
[null,null,null,null,null,null,null,null,null,null,null,null,null,"b","Rechnungsempfänger, der auch über eine Stammliste gewählt werden kann (Registerblatt: Kunden)"]
[null,null,null,null,null,null,null,null,null,null,null,null,null,"c","Weitere Stammdaten zur Rechnung (Registerblatt: Rechnungen)"]
[]
[]
[null,null,null,null,null,null,null,null,null,null,null,null,"Features"]
[]
[null,null,null,null,null,null,null,null,null,null,null,null,1,"Rechnungspositionen können über eine Eingabemaske erstellt und bearbeitet werden"]
[null,null,null,null,null,null,null,null,null,null,null,null,2,"Kunden können über eine Eingabemaske erstellt und bearbeitet werden"]
[null,null,null,null,null,null,null,null,null,null,null,null,3,"Mehrere Positionen können zu einer Rechnung hinzugefügt werden, die Kundenstammdaten können aus"]
[null,null,null,null,null,null,null,null,null,null,null,null,null,"einem gespeicherten Kundendatensatz geladen und ggf. angepasst werden."]
[null,null,null,null,null,null,null,null,null,null,null,null,4,"Alte Rechnungen können jederzeit wieder simuliert werden."]
[null,null,null,null,null,null,null,null,null,null,null,null,null,"Tipp: Zusätzlich empfiehlt es sich jede Rechnung als PDF-Datei abzuspeichern."]
[]
[]
[null,null,null,null,null,null,null,null,null,null,null,null,"Steuerelemente"]
[]
[]
[]
[]
[]
[]
[]
[]
[]
[]
[null,null,null,null,null,null,null,null,null,null,null,null,{"$f":"IF(ISERROR(INDEX(Tabelle2[Leistungsdatum],MATCH(1,FREQUENCY(1,N(Tabelle2[Rechnungsnummer]=\"\")),))),\"Keine offenen Positionen, die zu einer Rechnung zugeordnet werden können.\", COUNT(Tabelle2[ID])-COUNT(Tabelle2[Rechnungsnummer])&\" offene Positionen, die zu Rechnungen zugeordnet werden können.\")","v":"1 offene Positionen, die zu Rechnungen zugeordnet werden können."}]
[]
[]
[null,null,null,null,null,null,null,null,null,null,null,null,null,null,"Version 0.8, Releasedatum: 31.01.2017",null,null,null,"www.sven-brunn.de"]

{"sheet":"Rechnung","index":1,"n_rows":68,"n_cols":10,"rows_kept":68,"cut":false,"hidden":false,"merged":[[15,5,15,6]]}
[]
[null,null,null,null,null,null,null,null,null,{"$f":"IF(ISERROR(INDEX(Tabelle2[Leistungsdatum],MATCH(1,FREQUENCY(1,N(Tabelle2[Rechnungsnummer]=\"\")),))),\"Keine offenen Positionen\", COUNT(Tabelle2[ID])-COUNT(Tabelle2[Rechnungsnummer])&\" offene Positionen\")","v":"1 offene Positionen"}]
[null,null,{"$f":"C64","v":"Max Mustermann"}]
[null,null,{"$f":"C66","v":"Mustermannstraße 1"}]
[null,null,{"$f":"C67","v":"12345 Musterstadt"}]
[null,null,"Deutschland"]
[]
[]
[]
[null,null,{"$f":"IF(ISNA(MATCH(Rechnungsnummer,INDIRECT(Tabelle23[ID]))),\"\",IF(VLOOKUP(Rechnungsnummer,Tabelle23[],COLUMN(Tabelle23[Empfänger Firma]),)=\"\",\"\",VLOOKUP(Rechnungsnummer,Tabelle23[],COLUMN(Tabelle23[Empfänger Firma]),)))","v":"Hans Müller"},null,null,"Rechnungsdatum:",{"$f":"IF(ISNA(MATCH(Rechnungsnummer,INDIRECT(Tabelle23[ID]))),\"\",IF(VLOOKUP(Rechnungsnummer,Tabelle23[],COLUMN(Tabelle23[Datum]),)=\"\",\"\",VLOOKUP(Rechnungsnummer,Tabelle23[],COLUMN(Tabelle23[Datum]),)))","v":"2017-01-30"}]
[null,null,{"$f":"IF(ISNA(MATCH(Rechnungsnummer,INDIRECT(Tabelle23[ID]))),\"\",IF(VLOOKUP(Rechnungsnummer,Tabelle23[],COLUMN(Tabelle23[Abteilung]),)=\"\",\"\",VLOOKUP(Rechnungsnummer,Tabelle23[],COLUMN(Tabelle23[Abteilung]),)))","v":"Rechnung"},null,null,"Rechnungsnummer:",2]
[null,null,{"$f":"IF(ISNA(MATCH(Rechnungsnummer,INDIRECT(Tabelle23[ID]))),\"\",IF(VLOOKUP(Rechnungsnummer,Tabelle23[],COLUMN(Tabelle23[Straße + Hausnummer]),)=\"\",\"\",VLOOKUP(Rechnungsnummer,Tabelle23[],COLUMN(Tabelle23[Straße + Hausnummer]),)))","v":"Lange Straße 21"}]
[null,null,{"$f":"IF(ISNA(MATCH(Rechnungsnummer,INDIRECT(Tabelle23[ID]))),\"\",IF(VLOOKUP(Rechnungsnummer,Tabelle23[],COLUMN(Tabelle23[Ort]),)=\"\",\"\",VLOOKUP(Rechnungsnummer,Tabelle23[],COLUMN(Tabelle23[Ort]),)))","v":"12345 Musterstadt"},null,null,"Kundennummer:",{"$f":"IF(ISNA(MATCH(Rechnungsnummer,INDIRECT(Tabelle23[ID]))),\"\",IF(VLOOKUP(Rechnungsnummer,Tabelle23[],COLUMN(Tabelle23[Kundennr.]),)=\"\",\"\",VLOOKUP(Rechnungsnummer,Tabelle23[],COLUMN(Tabelle23[Kundennr.]),)))","v":10001}]
[null,null,{"$f":"IF(ISNA(MATCH(Rechnungsnummer,INDIRECT(Tabelle23[ID]))),\"\",IF(VLOOKUP(Rechnungsnummer,Tabelle23[],COLUMN(Tabelle23[Land]),)=\"\",\"\",VLOOKUP(Rechnungsnummer,Tabelle23[],COLUMN(Tabelle23[Land]),)))","v":"United Kingdom"},null,null,"Zahlungsziel:",{"$f":"IF(ISNA(MATCH(Rechnungsnummer,INDIRECT(Tabelle23[ID]))),\"\",IF(VLOOKUP(Rechnungsnummer,Tabelle23[],COLUMN(Tabelle23[Zahlungsziel]),)=\"\",\"14\",VLOOKUP(Rechnungsnummer,Tabelle23[],COLUMN(Tabelle23[Zahlungsziel]),)))","v":14}]
[null,null,null,null,null,"Fälligkeitsdatum:",{"$f":"Rechnungsdatum+G14","v":"2017-02-13"}]
[]
[]
[]
[null,null,"Rechnung"]
[null,null,{"$f":"IF(ISNA(MATCH(Rechnungsnummer,INDIRECT(Tabelle23[ID]))),\"\",IF(VLOOKUP(Rechnungsnummer,Tabelle23[],COLUMN(Tabelle23[Referenz]),)=\"\",\"\",VLOOKUP(Rechnungsnummer,Tabelle23[],COLUMN(Tabelle23[Referenz]),)))","v":""}]
[]
[]
[null,null,"Leistung","Leistungsdatum","Auftragsnr.","Preis","Kumuliert",null,null,"ID"]
[null,null,{"$f":"IF(ISNA(MATCH($J24,INDIRECT(\"Tabelle2[ID]\"))),\"\",IF(VLOOKUP($J24,Tabelle2[],COLUMN(Tabelle2[Leistung]),)=\"\",\"\",VLOOKUP($J24,Tabelle2[],COLUMN(Tabelle2[Leistung]),)))","v":"Kommode"},{"$f":"IF(ISNA(MATCH($J24,INDIRECT(\"Tabelle2[ID]\"))),\"\",IF(VLOOKUP($J24,Tabelle2[],COLUMN(Tabelle2[Leistungsdatum]),)=\"\",\"\",VLOOKUP($J24,Tabelle2[],COLUMN(Tabelle2[Leistungsdatum]),)))","v":"2017-01-24"},{"$f":"IF(ISNA(MATCH($J24,INDIRECT(\"Tabelle2[ID]\"))),\"\",IF(VLOOKUP($J24,Tabelle2[],COLUMN(Tabelle2[Auftragsnummer]),)=\"\",\"\",VLOOKUP($J24,Tabelle2[],COLUMN(Tabelle2[Auftragsnummer]),)))","v":11100},{"$f":"IF(ISNA(MATCH($J24,INDIRECT(\"Tabelle2[ID]\"))),\"\",IF(VLOOKUP($J24,Tabelle2[],COLUMN(Tabelle2[Preis]),)=\"\",\"\",VLOOKUP($J24,Tabelle2[],COLUMN(Tabelle2[Preis]),)))","v":999},{"$f":"F24*1","v":999},null,null,4]
[null,null,{"$f":"IF(ISNA(MATCH($J25,INDIRECT(\"Tabelle2[ID]\"))),\"\",IF(VLOOKUP($J25,Tabelle2[],COLUMN(Tabelle2[Leistung]),)=\"\",\"\",VLOOKUP($J25,Tabelle2[],COLUMN(Tabelle2[Leistung]),)))","v":"Selbstabholung"},{"$f":"IF(ISNA(MATCH($J25,INDIRECT(\"Tabelle2[ID]\"))),\"\",IF(VLOOKUP($J25,Tabelle2[],COLUMN(Tabelle2[Leistungsdatum]),)=\"\",\"\",VLOOKUP($J25,Tabelle2[],COLUMN(Tabelle2[Leistungsdatum]),)))","v":"2017-01-24"},{"$f":"IF(ISNA(MATCH($J25,INDIRECT(\"Tabelle2[ID]\"))),\"\",IF(VLOOKUP($J25,Tabelle2[],COLUMN(Tabelle2[Auftragsnummer]),)=\"\",\"\",VLOOKUP($J25,Tabelle2[],COLUMN(Tabelle2[Auftragsnummer]),)))","v":11100},{"$f":"IF(ISNA(MATCH($J25,INDIRECT(\"Tabelle2[ID]\"))),\"\",IF(VLOOKUP($J25,Tabelle2[],COLUMN(Tabelle2[Preis]),)=\"\",\"\",VLOOKUP($J25,Tabelle2[],COLUMN(Tabelle2[Preis]),)))","v":0},{"$f":"IF(F25<>\"\",F25+G24,\"\")","v":999},null,null,5]
[null,null,{"$f":"IF(ISNA(MATCH($J26,INDIRECT(\"Tabelle2[ID]\"))),\"\",IF(VLOOKUP($J26,Tabelle2[],COLUMN(Tabelle2[Leistung]),)=\"\",\"\",VLOOKUP($J26,Tabelle2[],COLUMN(Tabelle2[Leistung]),)))","v":""},{"$f":"IF(ISNA(MATCH($J26,INDIRECT(\"Tabelle2[ID]\"))),\"\",IF(VLOOKUP($J26,Tabelle2[],COLUMN(Tabelle2[Leistungsdatum]),)=\"\",\"\",VLOOKUP($J26,Tabelle2[],COLUMN(Tabelle2[Leistungsdatum]),)))","v":""},{"$f":"IF(ISNA(MATCH($J26,INDIRECT(\"Tabelle2[ID]\"))),\"\",IF(VLOOKUP($J26,Tabelle2[],COLUMN(Tabelle2[Auftragsnummer]),)=\"\",\"\",VLOOKUP($J26,Tabelle2[],COLUMN(Tabelle2[Auftragsnummer]),)))","v":""},{"$f":"IF(ISNA(MATCH($J26,INDIRECT(\"Tabelle2[ID]\"))),\"\",IF(VLOOKUP($J26,Tabelle2[],COLUMN(Tabelle2[Preis]),)=\"\",\"\",VLOOKUP($J26,Tabelle2[],COLUMN(Tabelle2[Preis]),)))","v":""},{"$f":"IF(F26<>\"\",F26+G25,\"\")","v":""}]
[null,null,{"$f":"IF(ISNA(MATCH($J27,INDIRECT(\"Tabelle2[ID]\"))),\"\",IF(VLOOKUP($J27,Tabelle2[],COLUMN(Tabelle2[Leistung]),)=\"\",\"\",VLOOKUP($J27,Tabelle2[],COLUMN(Tabelle2[Leistung]),)))","v":""},{"$f":"IF(ISNA(MATCH($J27,INDIRECT(\"Tabelle2[ID]\"))),\"\",IF(VLOOKUP($J27,Tabelle2[],COLUMN(Tabelle2[Leistungsdatum]),)=\"\",\"\",VLOOKUP($J27,Tabelle2[],COLUMN(Tabelle2[Leistungsdatum]),)))","v":""},{"$f":"IF(ISNA(MATCH($J27,INDIRECT(\"Tabelle2[ID]\"))),\"\",IF(VLOOKUP($J27,Tabelle2[],COLUMN(Tabelle2[Auftragsnummer]),)=\"\",\"\",VLOOKUP($J27,Tabelle2[],COLUMN(Tabelle2[Auftragsnummer]),)))","v":""},{"$f":"IF(ISNA(MATCH($J27,INDIRECT(\"Tabelle2[ID]\"))),\"\",IF(VLOOKUP($J27,Tabelle2[],COLUMN(Tabelle2[Preis]),)=\"\",\"\",VLOOKUP($J27,Tabelle2[],COLUMN(Tabelle2[Preis]),)))","v":""},""]
[null,null,{"$f":"IF(ISNA(MATCH($J28,INDIRECT(\"Tabelle2[ID]\"))),\"\",IF(VLOOKUP($J28,Tabelle2[],COLUMN(Tabelle2[Leistung]),)=\"\",\"\",VLOOKUP($J28,Tabelle2[],COLUMN(Tabelle2[Leistung]),)))","v":""},{"$f":"IF(ISNA(MATCH($J28,INDIRECT(\"Tabelle2[ID]\"))),\"\",IF(VLOOKUP($J28,Tabelle2[],COLUMN(Tabelle2[Leistungsdatum]),)=\"\",\"\",VLOOKUP($J28,Tabelle2[],COLUMN(Tabelle2[Leistungsdatum]),)))","v":""},{"$f":"IF(ISNA(MATCH($J28,INDIRECT(\"Tabelle2[ID]\"))),\"\",IF(VLOOKUP($J28,Tabelle2[],COLUMN(Tabelle2[Auftragsnummer]),)=\"\",\"\",VLOOKUP($J28,Tabelle2[],COLUMN(Tabelle2[Auftragsnummer]),)))","v":""},{"$f":"IF(ISNA(MATCH($J28,INDIRECT(\"Tabelle2[ID]\"))),\"\",IF(VLOOKUP($J28,Tabelle2[],COLUMN(Tabelle2[Preis]),)=\"\",\"\",VLOOKUP($J28,Tabelle2[],COLUMN(Tabelle2[Preis]),)))","v":""},""]
[null,null,{"$f":"IF(ISNA(MATCH($J29,INDIRECT(\"Tabelle2[ID]\"))),\"\",IF(VLOOKUP($J29,Tabelle2[],COLUMN(Tabelle2[Leistung]),)=\"\",\"\",VLOOKUP($J29,Tabelle2[],COLUMN(Tabelle2[Leistung]),)))","v":""},{"$f":"IF(ISNA(MATCH($J29,INDIRECT(\"Tabelle2[ID]\"))),\"\",IF(VLOOKUP($J29,Tabelle2[],COLUMN(Tabelle2[Leistungsdatum]),)=\"\",\"\",VLOOKUP($J29,Tabelle2[],COLUMN(Tabelle2[Leistungsdatum]),)))","v":""},{"$f":"IF(ISNA(MATCH($J29,INDIRECT(\"Tabelle2[ID]\"))),\"\",IF(VLOOKUP($J29,Tabelle2[],COLUMN(Tabelle2[Auftragsnummer]),)=\"\",\"\",VLOOKUP($J29,Tabelle2[],COLUMN(Tabelle2[Auftragsnummer]),)))","v":""},{"$f":"IF(ISNA(MATCH($J29,INDIRECT(\"Tabelle2[ID]\"))),\"\",IF(VLOOKUP($J29,Tabelle2[],COLUMN(Tabelle2[Preis]),)=\"\",\"\",VLOOKUP($J29,Tabelle2[],COLUMN(Tabelle2[Preis]),)))","v":""},""]
[null,null,{"$f":"IF(ISNA(MATCH($J30,INDIRECT(\"Tabelle2[ID]\"))),\"\",IF(VLOOKUP($J30,Tabelle2[],COLUMN(Tabelle2[Leistung]),)=\"\",\"\",VLOOKUP($J30,Tabelle2[],COLUMN(Tabelle2[Leistung]),)))","v":""},{"$f":"IF(ISNA(MATCH($J30,INDIRECT(\"Tabelle2[ID]\"))),\"\",IF(VLOOKUP($J30,Tabelle2[],COLUMN(Tabelle2[Leistungsdatum]),)=\"\",\"\",VLOOKUP($J30,Tabelle2[],COLUMN(Tabelle2[Leistungsdatum]),)))","v":""},{"$f":"IF(ISNA(MATCH($J30,INDIRECT(\"Tabelle2[ID]\"))),\"\",IF(VLOOKUP($J30,Tabelle2[],COLUMN(Tabelle2[Auftragsnummer]),)=\"\",\"\",VLOOKUP($J30,Tabelle2[],COLUMN(Tabelle2[Auftragsnummer]),)))","v":""},{"$f":"IF(ISNA(MATCH($J30,INDIRECT(\"Tabelle2[ID]\"))),\"\",IF(VLOOKUP($J30,Tabelle2[],COLUMN(Tabelle2[Preis]),)=\"\",\"\",VLOOKUP($J30,Tabelle2[],COLUMN(Tabelle2[Preis]),)))","v":""},""]
[null,null,{"$f":"IF(ISNA(MATCH($J31,INDIRECT(\"Tabelle2[ID]\"))),\"\",IF(VLOOKUP($J31,Tabelle2[],COLUMN(Tabelle2[Leistung]),)=\"\",\"\",VLOOKUP($J31,Tabelle2[],COLUMN(Tabelle2[Leistung]),)))","v":""},{"$f":"IF(ISNA(MATCH($J31,INDIRECT(\"Tabelle2[ID]\"))),\"\",IF(VLOOKUP($J31,Tabelle2[],COLUMN(Tabelle2[Leistungsdatum]),)=\"\",\"\",VLOOKUP($J31,Tabelle2[],COLUMN(Tabelle2[Leistungsdatum]),)))","v":""},{"$f":"IF(ISNA(MATCH($J31,INDIRECT(\"Tabelle2[ID]\"))),\"\",IF(VLOOKUP($J31,Tabelle2[],COLUMN(Tabelle2[Auftragsnummer]),)=\"\",\"\",VLOOKUP($J31,Tabelle2[],COLUMN(Tabelle2[Auftragsnummer]),)))","v":""},{"$f":"IF(ISNA(MATCH($J31,INDIRECT(\"Tabelle2[ID]\"))),\"\",IF(VLOOKUP($J31,Tabelle2[],COLUMN(Tabelle2[Preis]),)=\"\",\"\",VLOOKUP($J31,Tabelle2[],COLUMN(Tabelle2[Preis]),)))","v":""},""]
[null,null,{"$f":"IF(ISNA(MATCH($J32,INDIRECT(\"Tabelle2[ID]\"))),\"\",IF(VLOOKUP($J32,Tabelle2[],COLUMN(Tabelle2[Leistung]),)=\"\",\"\",VLOOKUP($J32,Tabelle2[],COLUMN(Tabelle2[Leistung]),)))","v":""},{"$f":"IF(ISNA(MATCH($J32,INDIRECT(\"Tabelle2[ID]\"))),\"\",IF(VLOOKUP($J32,Tabelle2[],COLUMN(Tabelle2[Leistungsdatum]),)=\"\",\"\",VLOOKUP($J32,Tabelle2[],COLUMN(Tabelle2[Leistungsdatum]),)))","v":""},{"$f":"IF(ISNA(MATCH($J32,INDIRECT(\"Tabelle2[ID]\"))),\"\",IF(VLOOKUP($J32,Tabelle2[],COLUMN(Tabelle2[Auftragsnummer]),)=\"\",\"\",VLOOKUP($J32,Tabelle2[],COLUMN(Tabelle2[Auftragsnummer]),)))","v":""},{"$f":"IF(ISNA(MATCH($J32,INDIRECT(\"Tabelle2[ID]\"))),\"\",IF(VLOOKUP($J32,Tabelle2[],COLUMN(Tabelle2[Preis]),)=\"\",\"\",VLOOKUP($J32,Tabelle2[],COLUMN(Tabelle2[Preis]),)))","v":""},""]
[null,null,{"$f":"IF(ISNA(MATCH($J33,INDIRECT(\"Tabelle2[ID]\"))),\"\",IF(VLOOKUP($J33,Tabelle2[],COLUMN(Tabelle2[Leistung]),)=\"\",\"\",VLOOKUP($J33,Tabelle2[],COLUMN(Tabelle2[Leistung]),)))","v":""},{"$f":"IF(ISNA(MATCH($J33,INDIRECT(\"Tabelle2[ID]\"))),\"\",IF(VLOOKUP($J33,Tabelle2[],COLUMN(Tabelle2[Leistungsdatum]),)=\"\",\"\",VLOOKUP($J33,Tabelle2[],COLUMN(Tabelle2[Leistungsdatum]),)))","v":""},{"$f":"IF(ISNA(MATCH($J33,INDIRECT(\"Tabelle2[ID]\"))),\"\",IF(VLOOKUP($J33,Tabelle2[],COLUMN(Tabelle2[Auftragsnummer]),)=\"\",\"\",VLOOKUP($J33,Tabelle2[],COLUMN(Tabelle2[Auftragsnummer]),)))","v":""},{"$f":"IF(ISNA(MATCH($J33,INDIRECT(\"Tabelle2[ID]\"))),\"\",IF(VLOOKUP($J33,Tabelle2[],COLUMN(Tabelle2[Preis]),)=\"\",\"\",VLOOKUP($J33,Tabelle2[],COLUMN(Tabelle2[Preis]),)))","v":""},""]
[null,null,{"$f":"IF(ISNA(MATCH($J34,INDIRECT(\"Tabelle2[ID]\"))),\"\",IF(VLOOKUP($J34,Tabelle2[],COLUMN(Tabelle2[Leistung]),)=\"\",\"\",VLOOKUP($J34,Tabelle2[],COLUMN(Tabelle2[Leistung]),)))","v":""},{"$f":"IF(ISNA(MATCH($J34,INDIRECT(\"Tabelle2[ID]\"))),\"\",IF(VLOOKUP($J34,Tabelle2[],COLUMN(Tabelle2[Leistungsdatum]),)=\"\",\"\",VLOOKUP($J34,Tabelle2[],COLUMN(Tabelle2[Leistungsdatum]),)))","v":""},{"$f":"IF(ISNA(MATCH($J34,INDIRECT(\"Tabelle2[ID]\"))),\"\",IF(VLOOKUP($J34,Tabelle2[],COLUMN(Tabelle2[Auftragsnummer]),)=\"\",\"\",VLOOKUP($J34,Tabelle2[],COLUMN(Tabelle2[Auftragsnummer]),)))","v":""},{"$f":"IF(ISNA(MATCH($J34,INDIRECT(\"Tabelle2[ID]\"))),\"\",IF(VLOOKUP($J34,Tabelle2[],COLUMN(Tabelle2[Preis]),)=\"\",\"\",VLOOKUP($J34,Tabelle2[],COLUMN(Tabelle2[Preis]),)))","v":""},""]
[null,null,{"$f":"IF(ISNA(MATCH($J35,INDIRECT(\"Tabelle2[ID]\"))),\"\",IF(VLOOKUP($J35,Tabelle2[],COLUMN(Tabelle2[Leistung]),)=\"\",\"\",VLOOKUP($J35,Tabelle2[],COLUMN(Tabelle2[Leistung]),)))","v":""},{"$f":"IF(ISNA(MATCH($J35,INDIRECT(\"Tabelle2[ID]\"))),\"\",IF(VLOOKUP($J35,Tabelle2[],COLUMN(Tabelle2[Leistungsdatum]),)=\"\",\"\",VLOOKUP($J35,Tabelle2[],COLUMN(Tabelle2[Leistungsdatum]),)))","v":""},{"$f":"IF(ISNA(MATCH($J35,INDIRECT(\"Tabelle2[ID]\"))),\"\",IF(VLOOKUP($J35,Tabelle2[],COLUMN(Tabelle2[Auftragsnummer]),)=\"\",\"\",VLOOKUP($J35,Tabelle2[],COLUMN(Tabelle2[Auftragsnummer]),)))","v":""},{"$f":"IF(ISNA(MATCH($J35,INDIRECT(\"Tabelle2[ID]\"))),\"\",IF(VLOOKUP($J35,Tabelle2[],COLUMN(Tabelle2[Preis]),)=\"\",\"\",VLOOKUP($J35,Tabelle2[],COLUMN(Tabelle2[Preis]),)))","v":""},""]
[null,null,{"$f":"IF(ISNA(MATCH($J36,INDIRECT(\"Tabelle2[ID]\"))),\"\",IF(VLOOKUP($J36,Tabelle2[],COLUMN(Tabelle2[Leistung]),)=\"\",\"\",VLOOKUP($J36,Tabelle2[],COLUMN(Tabelle2[Leistung]),)))","v":""},{"$f":"IF(ISNA(MATCH($J36,INDIRECT(\"Tabelle2[ID]\"))),\"\",IF(VLOOKUP($J36,Tabelle2[],COLUMN(Tabelle2[Leistungsdatum]),)=\"\",\"\",VLOOKUP($J36,Tabelle2[],COLUMN(Tabelle2[Leistungsdatum]),)))","v":""},{"$f":"IF(ISNA(MATCH($J36,INDIRECT(\"Tabelle2[ID]\"))),\"\",IF(VLOOKUP($J36,Tabelle2[],COLUMN(Tabelle2[Auftragsnummer]),)=\"\",\"\",VLOOKUP($J36,Tabelle2[],COLUMN(Tabelle2[Auftragsnummer]),)))","v":""},{"$f":"IF(ISNA(MATCH($J36,INDIRECT(\"Tabelle2[ID]\"))),\"\",IF(VLOOKUP($J36,Tabelle2[],COLUMN(Tabelle2[Preis]),)=\"\",\"\",VLOOKUP($J36,Tabelle2[],COLUMN(Tabelle2[Preis]),)))","v":""},""]
[null,null,{"$f":"IF(ISNA(MATCH($J37,INDIRECT(\"Tabelle2[ID]\"))),\"\",IF(VLOOKUP($J37,Tabelle2[],COLUMN(Tabelle2[Leistung]),)=\"\",\"\",VLOOKUP($J37,Tabelle2[],COLUMN(Tabelle2[Leistung]),)))","v":""},{"$f":"IF(ISNA(MATCH($J37,INDIRECT(\"Tabelle2[ID]\"))),\"\",IF(VLOOKUP($J37,Tabelle2[],COLUMN(Tabelle2[Leistungsdatum]),)=\"\",\"\",VLOOKUP($J37,Tabelle2[],COLUMN(Tabelle2[Leistungsdatum]),)))","v":""},{"$f":"IF(ISNA(MATCH($J37,INDIRECT(\"Tabelle2[ID]\"))),\"\",IF(VLOOKUP($J37,Tabelle2[],COLUMN(Tabelle2[Auftragsnummer]),)=\"\",\"\",VLOOKUP($J37,Tabelle2[],COLUMN(Tabelle2[Auftragsnummer]),)))","v":""},{"$f":"IF(ISNA(MATCH($J37,INDIRECT(\"Tabelle2[ID]\"))),\"\",IF(VLOOKUP($J37,Tabelle2[],COLUMN(Tabelle2[Preis]),)=\"\",\"\",VLOOKUP($J37,Tabelle2[],COLUMN(Tabelle2[Preis]),)))","v":""},""]
[null,null,{"$f":"IF(ISNA(MATCH($J38,INDIRECT(\"Tabelle2[ID]\"))),\"\",IF(VLOOKUP($J38,Tabelle2[],COLUMN(Tabelle2[Leistung]),)=\"\",\"\",VLOOKUP($J38,Tabelle2[],COLUMN(Tabelle2[Leistung]),)))","v":""},{"$f":"IF(ISNA(MATCH($J38,INDIRECT(\"Tabelle2[ID]\"))),\"\",IF(VLOOKUP($J38,Tabelle2[],COLUMN(Tabelle2[Leistungsdatum]),)=\"\",\"\",VLOOKUP($J38,Tabelle2[],COLUMN(Tabelle2[Leistungsdatum]),)))","v":""},{"$f":"IF(ISNA(MATCH($J38,INDIRECT(\"Tabelle2[ID]\"))),\"\",IF(VLOOKUP($J38,Tabelle2[],COLUMN(Tabelle2[Auftragsnummer]),)=\"\",\"\",VLOOKUP($J38,Tabelle2[],COLUMN(Tabelle2[Auftragsnummer]),)))","v":""},{"$f":"IF(ISNA(MATCH($J38,INDIRECT(\"Tabelle2[ID]\"))),\"\",IF(VLOOKUP($J38,Tabelle2[],COLUMN(Tabelle2[Preis]),)=\"\",\"\",VLOOKUP($J38,Tabelle2[],COLUMN(Tabelle2[Preis]),)))","v":""},""]
[null,null,{"$f":"IF(ISNA(MATCH($J39,INDIRECT(\"Tabelle2[ID]\"))),\"\",IF(VLOOKUP($J39,Tabelle2[],COLUMN(Tabelle2[Leistung]),)=\"\",\"\",VLOOKUP($J39,Tabelle2[],COLUMN(Tabelle2[Leistung]),)))","v":""},{"$f":"IF(ISNA(MATCH($J39,INDIRECT(\"Tabelle2[ID]\"))),\"\",IF(VLOOKUP($J39,Tabelle2[],COLUMN(Tabelle2[Leistungsdatum]),)=\"\",\"\",VLOOKUP($J39,Tabelle2[],COLUMN(Tabelle2[Leistungsdatum]),)))","v":""},{"$f":"IF(ISNA(MATCH($J39,INDIRECT(\"Tabelle2[ID]\"))),\"\",IF(VLOOKUP($J39,Tabelle2[],COLUMN(Tabelle2[Auftragsnummer]),)=\"\",\"\",VLOOKUP($J39,Tabelle2[],COLUMN(Tabelle2[Auftragsnummer]),)))","v":""},{"$f":"IF(ISNA(MATCH($J39,INDIRECT(\"Tabelle2[ID]\"))),\"\",IF(VLOOKUP($J39,Tabelle2[],COLUMN(Tabelle2[Preis]),)=\"\",\"\",VLOOKUP($J39,Tabelle2[],COLUMN(Tabelle2[Preis]),)))","v":""},""]
[null,null,{"$f":"IF(ISNA(MATCH($J40,INDIRECT(\"Tabelle2[ID]\"))),\"\",IF(VLOOKUP($J40,Tabelle2[],COLUMN(Tabelle2[Leistung]),)=\"\",\"\",VLOOKUP($J40,Tabelle2[],COLUMN(Tabelle2[Leistung]),)))","v":""},{"$f":"IF(ISNA(MATCH($J40,INDIRECT(\"Tabelle2[ID]\"))),\"\",IF(VLOOKUP($J40,Tabelle2[],COLUMN(Tabelle2[Leistungsdatum]),)=\"\",\"\",VLOOKUP($J40,Tabelle2[],COLUMN(Tabelle2[Leistungsdatum]),)))","v":""},{"$f":"IF(ISNA(MATCH($J40,INDIRECT(\"Tabelle2[ID]\"))),\"\",IF(VLOOKUP($J40,Tabelle2[],COLUMN(Tabelle2[Auftragsnummer]),)=\"\",\"\",VLOOKUP($J40,Tabelle2[],COLUMN(Tabelle2[Auftragsnummer]),)))","v":""},{"$f":"IF(ISNA(MATCH($J40,INDIRECT(\"Tabelle2[ID]\"))),\"\",IF(VLOOKUP($J40,Tabelle2[],COLUMN(Tabelle2[Preis]),)=\"\",\"\",VLOOKUP($J40,Tabelle2[],COLUMN(Tabelle2[Preis]),)))","v":""},""]
[null,null,{"$f":"IF(ISNA(MATCH($J41,INDIRECT(\"Tabelle2[ID]\"))),\"\",IF(VLOOKUP($J41,Tabelle2[],COLUMN(Tabelle2[Leistung]),)=\"\",\"\",VLOOKUP($J41,Tabelle2[],COLUMN(Tabelle2[Leistung]),)))","v":""},{"$f":"IF(ISNA(MATCH($J41,INDIRECT(\"Tabelle2[ID]\"))),\"\",IF(VLOOKUP($J41,Tabelle2[],COLUMN(Tabelle2[Leistungsdatum]),)=\"\",\"\",VLOOKUP($J41,Tabelle2[],COLUMN(Tabelle2[Leistungsdatum]),)))","v":""},{"$f":"IF(ISNA(MATCH($J41,INDIRECT(\"Tabelle2[ID]\"))),\"\",IF(VLOOKUP($J41,Tabelle2[],COLUMN(Tabelle2[Auftragsnummer]),)=\"\",\"\",VLOOKUP($J41,Tabelle2[],COLUMN(Tabelle2[Auftragsnummer]),)))","v":""},{"$f":"IF(ISNA(MATCH($J41,INDIRECT(\"Tabelle2[ID]\"))),\"\",IF(VLOOKUP($J41,Tabelle2[],COLUMN(Tabelle2[Preis]),)=\"\",\"\",VLOOKUP($J41,Tabelle2[],COLUMN(Tabelle2[Preis]),)))","v":""},""]
[null,null,{"$f":"IF(ISNA(MATCH($J42,INDIRECT(\"Tabelle2[ID]\"))),\"\",IF(VLOOKUP($J42,Tabelle2[],COLUMN(Tabelle2[Leistung]),)=\"\",\"\",VLOOKUP($J42,Tabelle2[],COLUMN(Tabelle2[Leistung]),)))","v":""},{"$f":"IF(ISNA(MATCH($J42,INDIRECT(\"Tabelle2[ID]\"))),\"\",IF(VLOOKUP($J42,Tabelle2[],COLUMN(Tabelle2[Leistungsdatum]),)=\"\",\"\",VLOOKUP($J42,Tabelle2[],COLUMN(Tabelle2[Leistungsdatum]),)))","v":""},{"$f":"IF(ISNA(MATCH($J42,INDIRECT(\"Tabelle2[ID]\"))),\"\",IF(VLOOKUP($J42,Tabelle2[],COLUMN(Tabelle2[Auftragsnummer]),)=\"\",\"\",VLOOKUP($J42,Tabelle2[],COLUMN(Tabelle2[Auftragsnummer]),)))","v":""},{"$f":"IF(ISNA(MATCH($J42,INDIRECT(\"Tabelle2[ID]\"))),\"\",IF(VLOOKUP($J42,Tabelle2[],COLUMN(Tabelle2[Preis]),)=\"\",\"\",VLOOKUP($J42,Tabelle2[],COLUMN(Tabelle2[Preis]),)))","v":""},""]
[null,null,{"$f":"IF(ISNA(MATCH($J43,INDIRECT(\"Tabelle2[ID]\"))),\"\",IF(VLOOKUP($J43,Tabelle2[],COLUMN(Tabelle2[Leistung]),)=\"\",\"\",VLOOKUP($J43,Tabelle2[],COLUMN(Tabelle2[Leistung]),)))","v":""},{"$f":"IF(ISNA(MATCH($J43,INDIRECT(\"Tabelle2[ID]\"))),\"\",IF(VLOOKUP($J43,Tabelle2[],COLUMN(Tabelle2[Leistungsdatum]),)=\"\",\"\",VLOOKUP($J43,Tabelle2[],COLUMN(Tabelle2[Leistungsdatum]),)))","v":""},{"$f":"IF(ISNA(MATCH($J43,INDIRECT(\"Tabelle2[ID]\"))),\"\",IF(VLOOKUP($J43,Tabelle2[],COLUMN(Tabelle2[Auftragsnummer]),)=\"\",\"\",VLOOKUP($J43,Tabelle2[],COLUMN(Tabelle2[Auftragsnummer]),)))","v":""},{"$f":"IF(ISNA(MATCH($J43,INDIRECT(\"Tabelle2[ID]\"))),\"\",IF(VLOOKUP($J43,Tabelle2[],COLUMN(Tabelle2[Preis]),)=\"\",\"\",VLOOKUP($J43,Tabelle2[],COLUMN(Tabelle2[Preis]),)))","v":""},""]
[null,null,{"$f":"IF(ISNA(MATCH($J44,INDIRECT(\"Tabelle2[ID]\"))),\"\",IF(VLOOKUP($J44,Tabelle2[],COLUMN(Tabelle2[Leistung]),)=\"\",\"\",VLOOKUP($J44,Tabelle2[],COLUMN(Tabelle2[Leistung]),)))","v":""},{"$f":"IF(ISNA(MATCH($J44,INDIRECT(\"Tabelle2[ID]\"))),\"\",IF(VLOOKUP($J44,Tabelle2[],COLUMN(Tabelle2[Leistungsdatum]),)=\"\",\"\",VLOOKUP($J44,Tabelle2[],COLUMN(Tabelle2[Leistungsdatum]),)))","v":""},{"$f":"IF(ISNA(MATCH($J44,INDIRECT(\"Tabelle2[ID]\"))),\"\",IF(VLOOKUP($J44,Tabelle2[],COLUMN(Tabelle2[Auftragsnummer]),)=\"\",\"\",VLOOKUP($J44,Tabelle2[],COLUMN(Tabelle2[Auftragsnummer]),)))","v":""},{"$f":"IF(ISNA(MATCH($J44,INDIRECT(\"Tabelle2[ID]\"))),\"\",IF(VLOOKUP($J44,Tabelle2[],COLUMN(Tabelle2[Preis]),)=\"\",\"\",VLOOKUP($J44,Tabelle2[],COLUMN(Tabelle2[Preis]),)))","v":""},""]
[null,null,{"$f":"IF(ISNA(MATCH($J45,INDIRECT(\"Tabelle2[ID]\"))),\"\",IF(VLOOKUP($J45,Tabelle2[],COLUMN(Tabelle2[Leistung]),)=\"\",\"\",VLOOKUP($J45,Tabelle2[],COLUMN(Tabelle2[Leistung]),)))","v":""},{"$f":"IF(ISNA(MATCH($J45,INDIRECT(\"Tabelle2[ID]\"))),\"\",IF(VLOOKUP($J45,Tabelle2[],COLUMN(Tabelle2[Leistungsdatum]),)=\"\",\"\",VLOOKUP($J45,Tabelle2[],COLUMN(Tabelle2[Leistungsdatum]),)))","v":""},{"$f":"IF(ISNA(MATCH($J45,INDIRECT(\"Tabelle2[ID]\"))),\"\",IF(VLOOKUP($J45,Tabelle2[],COLUMN(Tabelle2[Auftragsnummer]),)=\"\",\"\",VLOOKUP($J45,Tabelle2[],COLUMN(Tabelle2[Auftragsnummer]),)))","v":""},{"$f":"IF(ISNA(MATCH($J45,INDIRECT(\"Tabelle2[ID]\"))),\"\",IF(VLOOKUP($J45,Tabelle2[],COLUMN(Tabelle2[Preis]),)=\"\",\"\",VLOOKUP($J45,Tabelle2[],COLUMN(Tabelle2[Preis]),)))","v":""},""]
[null,null,{"$f":"IF(ISNA(MATCH($J46,INDIRECT(\"Tabelle2[ID]\"))),\"\",IF(VLOOKUP($J46,Tabelle2[],COLUMN(Tabelle2[Leistung]),)=\"\",\"\",VLOOKUP($J46,Tabelle2[],COLUMN(Tabelle2[Leistung]),)))","v":""},{"$f":"IF(ISNA(MATCH($J46,INDIRECT(\"Tabelle2[ID]\"))),\"\",IF(VLOOKUP($J46,Tabelle2[],COLUMN(Tabelle2[Leistungsdatum]),)=\"\",\"\",VLOOKUP($J46,Tabelle2[],COLUMN(Tabelle2[Leistungsdatum]),)))","v":""},{"$f":"IF(ISNA(MATCH($J46,INDIRECT(\"Tabelle2[ID]\"))),\"\",IF(VLOOKUP($J46,Tabelle2[],COLUMN(Tabelle2[Auftragsnummer]),)=\"\",\"\",VLOOKUP($J46,Tabelle2[],COLUMN(Tabelle2[Auftragsnummer]),)))","v":""},{"$f":"IF(ISNA(MATCH($J46,INDIRECT(\"Tabelle2[ID]\"))),\"\",IF(VLOOKUP($J46,Tabelle2[],COLUMN(Tabelle2[Preis]),)=\"\",\"\",VLOOKUP($J46,Tabelle2[],COLUMN(Tabelle2[Preis]),)))","v":""},""]
[null,null,{"$f":"IF(ISNA(MATCH($J47,INDIRECT(\"Tabelle2[ID]\"))),\"\",IF(VLOOKUP($J47,Tabelle2[],COLUMN(Tabelle2[Leistung]),)=\"\",\"\",VLOOKUP($J47,Tabelle2[],COLUMN(Tabelle2[Leistung]),)))","v":""},{"$f":"IF(ISNA(MATCH($J47,INDIRECT(\"Tabelle2[ID]\"))),\"\",IF(VLOOKUP($J47,Tabelle2[],COLUMN(Tabelle2[Leistungsdatum]),)=\"\",\"\",VLOOKUP($J47,Tabelle2[],COLUMN(Tabelle2[Leistungsdatum]),)))","v":""},{"$f":"IF(ISNA(MATCH($J47,INDIRECT(\"Tabelle2[ID]\"))),\"\",IF(VLOOKUP($J47,Tabelle2[],COLUMN(Tabelle2[Auftragsnummer]),)=\"\",\"\",VLOOKUP($J47,Tabelle2[],COLUMN(Tabelle2[Auftragsnummer]),)))","v":""},{"$f":"IF(ISNA(MATCH($J47,INDIRECT(\"Tabelle2[ID]\"))),\"\",IF(VLOOKUP($J47,Tabelle2[],COLUMN(Tabelle2[Preis]),)=\"\",\"\",VLOOKUP($J47,Tabelle2[],COLUMN(Tabelle2[Preis]),)))","v":""},""]
[null,null,{"$f":"IF(ISNA(MATCH($J48,INDIRECT(\"Tabelle2[ID]\"))),\"\",IF(VLOOKUP($J48,Tabelle2[],COLUMN(Tabelle2[Leistung]),)=\"\",\"\",VLOOKUP($J48,Tabelle2[],COLUMN(Tabelle2[Leistung]),)))","v":""},{"$f":"IF(ISNA(MATCH($J48,INDIRECT(\"Tabelle2[ID]\"))),\"\",IF(VLOOKUP($J48,Tabelle2[],COLUMN(Tabelle2[Leistungsdatum]),)=\"\",\"\",VLOOKUP($J48,Tabelle2[],COLUMN(Tabelle2[Leistungsdatum]),)))","v":""},{"$f":"IF(ISNA(MATCH($J48,INDIRECT(\"Tabelle2[ID]\"))),\"\",IF(VLOOKUP($J48,Tabelle2[],COLUMN(Tabelle2[Auftragsnummer]),)=\"\",\"\",VLOOKUP($J48,Tabelle2[],COLUMN(Tabelle2[Auftragsnummer]),)))","v":""},{"$f":"IF(ISNA(MATCH($J48,INDIRECT(\"Tabelle2[ID]\"))),\"\",IF(VLOOKUP($J48,Tabelle2[],COLUMN(Tabelle2[Preis]),)=\"\",\"\",VLOOKUP($J48,Tabelle2[],COLUMN(Tabelle2[Preis]),)))","v":""},""]
[null,null,{"$f":"IF(ISNA(MATCH($J49,INDIRECT(\"Tabelle2[ID]\"))),\"\",IF(VLOOKUP($J49,Tabelle2[],COLUMN(Tabelle2[Leistung]),)=\"\",\"\",VLOOKUP($J49,Tabelle2[],COLUMN(Tabelle2[Leistung]),)))","v":""},{"$f":"IF(ISNA(MATCH($J49,INDIRECT(\"Tabelle2[ID]\"))),\"\",IF(VLOOKUP($J49,Tabelle2[],COLUMN(Tabelle2[Leistungsdatum]),)=\"\",\"\",VLOOKUP($J49,Tabelle2[],COLUMN(Tabelle2[Leistungsdatum]),)))","v":""},{"$f":"IF(ISNA(MATCH($J49,INDIRECT(\"Tabelle2[ID]\"))),\"\",IF(VLOOKUP($J49,Tabelle2[],COLUMN(Tabelle2[Auftragsnummer]),)=\"\",\"\",VLOOKUP($J49,Tabelle2[],COLUMN(Tabelle2[Auftragsnummer]),)))","v":""},{"$f":"IF(ISNA(MATCH($J49,INDIRECT(\"Tabelle2[ID]\"))),\"\",IF(VLOOKUP($J49,Tabelle2[],COLUMN(Tabelle2[Preis]),)=\"\",\"\",VLOOKUP($J49,Tabelle2[],COLUMN(Tabelle2[Preis]),)))","v":""},""]
[null,null,{"$f":"IF(ISNA(MATCH($J50,INDIRECT(\"Tabelle2[ID]\"))),\"\",IF(VLOOKUP($J50,Tabelle2[],COLUMN(Tabelle2[Leistung]),)=\"\",\"\",VLOOKUP($J50,Tabelle2[],COLUMN(Tabelle2[Leistung]),)))","v":""},{"$f":"IF(ISNA(MATCH($J50,INDIRECT(\"Tabelle2[ID]\"))),\"\",IF(VLOOKUP($J50,Tabelle2[],COLUMN(Tabelle2[Leistungsdatum]),)=\"\",\"\",VLOOKUP($J50,Tabelle2[],COLUMN(Tabelle2[Leistungsdatum]),)))","v":""},{"$f":"IF(ISNA(MATCH($J50,INDIRECT(\"Tabelle2[ID]\"))),\"\",IF(VLOOKUP($J50,Tabelle2[],COLUMN(Tabelle2[Auftragsnummer]),)=\"\",\"\",VLOOKUP($J50,Tabelle2[],COLUMN(Tabelle2[Auftragsnummer]),)))","v":""},{"$f":"IF(ISNA(MATCH($J50,INDIRECT(\"Tabelle2[ID]\"))),\"\",IF(VLOOKUP($J50,Tabelle2[],COLUMN(Tabelle2[Preis]),)=\"\",\"\",VLOOKUP($J50,Tabelle2[],COLUMN(Tabelle2[Preis]),)))","v":""},""]
[null,null,{"$f":"IF(ISNA(MATCH($J51,INDIRECT(\"Tabelle2[ID]\"))),\"\",IF(VLOOKUP($J51,Tabelle2[],COLUMN(Tabelle2[Leistung]),)=\"\",\"\",VLOOKUP($J51,Tabelle2[],COLUMN(Tabelle2[Leistung]),)))","v":""},{"$f":"IF(ISNA(MATCH($J51,INDIRECT(\"Tabelle2[ID]\"))),\"\",IF(VLOOKUP($J51,Tabelle2[],COLUMN(Tabelle2[Leistungsdatum]),)=\"\",\"\",VLOOKUP($J51,Tabelle2[],COLUMN(Tabelle2[Leistungsdatum]),)))","v":""},{"$f":"IF(ISNA(MATCH($J51,INDIRECT(\"Tabelle2[ID]\"))),\"\",IF(VLOOKUP($J51,Tabelle2[],COLUMN(Tabelle2[Auftragsnummer]),)=\"\",\"\",VLOOKUP($J51,Tabelle2[],COLUMN(Tabelle2[Auftragsnummer]),)))","v":""},{"$f":"IF(ISNA(MATCH($J51,INDIRECT(\"Tabelle2[ID]\"))),\"\",IF(VLOOKUP($J51,Tabelle2[],COLUMN(Tabelle2[Preis]),)=\"\",\"\",VLOOKUP($J51,Tabelle2[],COLUMN(Tabelle2[Preis]),)))","v":""},""]
[null,null,{"$f":"IF(ISNA(MATCH($J52,INDIRECT(\"Tabelle2[ID]\"))),\"\",IF(VLOOKUP($J52,Tabelle2[],COLUMN(Tabelle2[Leistung]),)=\"\",\"\",VLOOKUP($J52,Tabelle2[],COLUMN(Tabelle2[Leistung]),)))","v":""},{"$f":"IF(ISNA(MATCH($J52,INDIRECT(\"Tabelle2[ID]\"))),\"\",IF(VLOOKUP($J52,Tabelle2[],COLUMN(Tabelle2[Leistungsdatum]),)=\"\",\"\",VLOOKUP($J52,Tabelle2[],COLUMN(Tabelle2[Leistungsdatum]),)))","v":""},{"$f":"IF(ISNA(MATCH($J52,INDIRECT(\"Tabelle2[ID]\"))),\"\",IF(VLOOKUP($J52,Tabelle2[],COLUMN(Tabelle2[Auftragsnummer]),)=\"\",\"\",VLOOKUP($J52,Tabelle2[],COLUMN(Tabelle2[Auftragsnummer]),)))","v":""},{"$f":"IF(ISNA(MATCH($J52,INDIRECT(\"Tabelle2[ID]\"))),\"\",IF(VLOOKUP($J52,Tabelle2[],COLUMN(Tabelle2[Preis]),)=\"\",\"\",VLOOKUP($J52,Tabelle2[],COLUMN(Tabelle2[Preis]),)))","v":""},""]
[null,null,{"$f":"IF(ISNA(MATCH($J53,INDIRECT(\"Tabelle2[ID]\"))),\"\",IF(VLOOKUP($J53,Tabelle2[],COLUMN(Tabelle2[Leistung]),)=\"\",\"\",VLOOKUP($J53,Tabelle2[],COLUMN(Tabelle2[Leistung]),)))","v":""},{"$f":"IF(ISNA(MATCH($J53,INDIRECT(\"Tabelle2[ID]\"))),\"\",IF(VLOOKUP($J53,Tabelle2[],COLUMN(Tabelle2[Leistungsdatum]),)=\"\",\"\",VLOOKUP($J53,Tabelle2[],COLUMN(Tabelle2[Leistungsdatum]),)))","v":""},{"$f":"IF(ISNA(MATCH($J53,INDIRECT(\"Tabelle2[ID]\"))),\"\",IF(VLOOKUP($J53,Tabelle2[],COLUMN(Tabelle2[Auftragsnummer]),)=\"\",\"\",VLOOKUP($J53,Tabelle2[],COLUMN(Tabelle2[Auftragsnummer]),)))","v":""},{"$f":"IF(ISNA(MATCH($J53,INDIRECT(\"Tabelle2[ID]\"))),\"\",IF(VLOOKUP($J53,Tabelle2[],COLUMN(Tabelle2[Preis]),)=\"\",\"\",VLOOKUP($J53,Tabelle2[],COLUMN(Tabelle2[Preis]),)))","v":""},""]
[null,null,{"$f":"IF(ISNA(MATCH($J54,INDIRECT(\"Tabelle2[ID]\"))),\"\",IF(VLOOKUP($J54,Tabelle2[],COLUMN(Tabelle2[Leistung]),)=\"\",\"\",VLOOKUP($J54,Tabelle2[],COLUMN(Tabelle2[Leistung]),)))","v":""},{"$f":"IF(ISNA(MATCH($J54,INDIRECT(\"Tabelle2[ID]\"))),\"\",IF(VLOOKUP($J54,Tabelle2[],COLUMN(Tabelle2[Leistungsdatum]),)=\"\",\"\",VLOOKUP($J54,Tabelle2[],COLUMN(Tabelle2[Leistungsdatum]),)))","v":""},{"$f":"IF(ISNA(MATCH($J54,INDIRECT(\"Tabelle2[ID]\"))),\"\",IF(VLOOKUP($J54,Tabelle2[],COLUMN(Tabelle2[Auftragsnummer]),)=\"\",\"\",VLOOKUP($J54,Tabelle2[],COLUMN(Tabelle2[Auftragsnummer]),)))","v":""},{"$f":"IF(ISNA(MATCH($J54,INDIRECT(\"Tabelle2[ID]\"))),\"\",IF(VLOOKUP($J54,Tabelle2[],COLUMN(Tabelle2[Preis]),)=\"\",\"\",VLOOKUP($J54,Tabelle2[],COLUMN(Tabelle2[Preis]),)))","v":""},""]
[]
[null,null,{"$f":"IF(ISNA(MATCH(Rechnungsnummer,INDIRECT(Tabelle23[ID]))),\"\",IF(VLOOKUP(Rechnungsnummer,Tabelle23[],COLUMN(Tabelle23[Freitext mit Konditionen]),)=\"\",\"\",VLOOKUP(Rechnungsnummer,Tabelle23[],COLUMN(Tabelle23[Freitext mit Konditionen]),)))","v":""},null,null,null,{"$f":"SUM(F24:F54)","v":999}]
[]
[null,null,null,null,null,null,{"$f":"G56","v":999}]
[]
[]
[]
[null,null,"Als Kleinunternehmer im Sinne von § 19 Abs. 1 UStG wird Umsatzsteuer nicht berechnet."]
[]
[null,null,"Max Mustermann"]
[]
[null,null,"Mustermannstraße 1"]
[null,null,"12345 Musterstadt"]
[null,null,"Deutschland"]

{"sheet":"Kunden","index":2,"n_rows":5,"n_cols":7,"rows_kept":5,"cut":false,"hidden":false,"merged":[]}
["ID","Firma","Abteilung","Straße + Hausnummer","Ort + Plz","Land","Kundennr."]
[1,"Anja Muster","Rechnungsstelle","Hohe Straße 3","45127 Essen","Deutschland",11547]
[2,"Jennifer Master","KFC","Steweg 11","45326 Essen","Deutschland"]
[3,"Hans Müller","Rechnung","Lange Straße 21","12345 Musterstadt","United Kingdom","Mustermann"]
[4,"Michael Meier",null,"Alte Ruhrweg 4","12345 Musterstadt","Deutschland"]

{"sheet":"Rechnungen","index":3,"n_rows":3,"n_cols":11,"rows_kept":3,"cut":false,"hidden":false,"merged":[]}
["ID","Datum","Referenz","Freitext mit Konditionen","Zahlungsziel","Empfänger Firma","Abteilung","Straße + Hausnummer","Ort","Land","Kundennr."]
[1,"2017-01-30","Rechnungsstellung wie telefonisch besprochen","Barzahlung beim nächsten Besuch ist auch ok",14,"Anja Muster","Rechnungsstelle","Hohe Straße 3","45127 Essen","Deutschland",11547]
[2,"2017-01-30",null,null,14,"Hans Müller","Rechnung","Lange Straße 21","12345 Musterstadt","United Kingdom",10001]

{"sheet":"Positionen","index":4,"n_rows":7,"n_cols":8,"rows_kept":7,"cut":false,"hidden":false,"merged":[]}
["ID","Leistung","Leistungsdatum","Auftragsnummer","Preis","Interne Bemerkung","Rechnungsnummer","Position abgerechnet am"]
[1,"Hin- und Rücktransport","2017-01-20",10100,200,null,1,"2017-01-30"]
[2,"Tisch und Stühle","2017-01-20",10200,2000,null,1,"2017-01-30"]
[3,"Aufbau","2017-01-20",10300,100,null,1,"2017-01-30"]
[4,"Kommode","2017-01-24",11100,999,null,2,"2017-01-30"]
[5,"Selbstabholung","2017-01-24",11100,0,null,2,"2017-01-30"]
[6,"Testposition","30.01.2017",1234,10000,"Testposition, die zu einer Rechnung erstellt werden kann!"]